bitfinex/quotes_BTCUSD_20240908
["timestamp","ask_amount","ask_price","bid_price","bid_amount"]
[1725825448581,1.24028753,54488.0,54487.0,0.066301]
[1725825448838,1.24029564,54488.0,54487.0,1e-06]
[1725825449325,1.15797763,54488.0,54487.0,1e-06]
[1725825449990,1.26539409,54488.0,54487.0,1e-06]
[1725825452421,1.37514062,54488.0,54487.0,1e-06]
[1725825452639,1.43864062,54488.0,54487.0,1e-06]
[1725825453746,1.60504602,54488.0,54487.0,1e-06]
[1725825455226,1.49529949,54488.0,54487.0,1e-06]
[1725825458024,1.49607143,54488.0,54487.0,1e-06]
[1725825462976,1.65928,54488.0,54487.0,1e-06]
[1725825463208,1.67527587,54488.0,54487.0,1e-06]
[1725825463415,1.51045261,54488.0,54487.0,1e-06]
[1725825463620,1.29637881,54488.0,54487.0,1e-06]
[1725825467670,1.43369365,54488.0,54487.0,1e-06]
[1725825467886,1.43412898,54488.0,54487.0,1e-06]
[1725825468100,1.29681536,54488.0,54487.0,1e-06]
[1725825469659,1.28955856,54488.0,54487.0,1e-06]
[1725825474467,1.28955856,54488.0,54487.0,0.062701]
[1725825474950,1.01156802,54488.0,54487.0,0.0773163]
[1725825475126,1.15838902,54488.0,54487.0,0.0773163]
[1725825475808,1.15938902,54488.0,54487.0,0.062701]
[1725825476032,1.18675915,54488.0,54487.0,0.062701]
[1725825476451,1.18575915,54488.0,54487.0,0.062701]
[1725825477075,1.28475915,54488.0,54487.0,0.062701]
[1725825477735,1.28775915,54488.0,54487.0,0.062701]
[1725825478158,1.28475915,54488.0,54487.0,0.062701]
[1725825478606,1.28875915,54488.0,54487.0,0.062701]
[1725825479742,1.42201676,54488.0,54487.0,0.062701]
[1725825480835,1.42200368,54488.0,54487.0,0.062701]
[1725825481037,1.28875915,54488.0,54487.0,0.062701]
[1725825481239,1.4260007,54488.0,54487.0,0.062701]
[1725825481450,1.42407974,54488.0,54487.0,0.062701]
[1725825481866,1.28683678,54488.0,54487.0,0.062701]
[1725825482080,1.42408267,54488.0,54487.0,0.062701]
[1725825482290,1.42408292,54488.0,54487.0,0.062701]
[1725825483322,1.42408535,54488.0,54487.0,0.062701]
[1725825483734,1.28683678,54488.0,54487.0,0.062701]
[1725825485343,1.37506697,54488.0,54487.0,0.062701]
[1725825485775,1.37588197,54488.0,54487.0,0.062701]
[1725825485989,1.54057352,54488.0,54487.0,0.062701]
[1725825486211,1.55545979,54488.0,54487.0,1e-06]
[1725825487563,1.88016436,54488.0,54487.0,1e-06]
[1725825487810,1.71147577,54488.0,54487.0,1e-06]
[1725825488049,1.71647577,54488.0,54487.0,1e-06]
[1725825488263,1.55536211,54488.0,54487.0,1e-06]
[1725825489120,1.7200477,54488.0,54487.0,1e-06]
[1725825490200,1.55536211,54488.0,54487.0,1e-06]
[1725825490904,1.72004141,54488.0,54487.0,1e-06]
[1725825491549,1.55036211,54488.0,54487.0,1e-06]
[1725825491744,1.71503879,54488.0,54487.0,1e-06]
[1725825492345,1.72203879,54488.0,54487.0,1e-06]
[1725825492544,1.72103879,54488.0,54487.0,1e-06]
[1725825492991,1.72503879,54488.0,54487.0,1e-06]
[1725825494390,2.01868079,54488.0,54487.0,1e-06]
[1725825495051,2.01168079,54488.0,54487.0,1e-06]
[1725825495230,1.83935402,54488.0,54487.0,1e-06]
[1725825496319,1.83621183,54488.0,54487.0,1e-06]
[1725825496743,1.83521183,54488.0,54487.0,1e-06]
[1725825496978,1.82921183,54488.0,54487.0,1e-06]
[1725825497206,1.84021183,54488.0,54487.0,1e-06]
[1725825497639,2.0251949,54488.0,54487.0,1e-06]
[1725825498936,2.20500359,54488.0,54487.0,1e-06]
[1725825499165,2.04033127,54488.0,54487.0,1e-06]
[1725825501156,1.86052258,54488.0,54487.0,1e-06]
[1725825501370,2.03782041,54488.0,54487.0,1e-06]
[1725825504665,1.85283734,54488.0,54487.0,1e-06]
[1725825504885,1.85283734,54488.0,54487.0,0.062201]
[1725825506148,1.67410966,54488.0,54487.0,0.062201]
[1725825506355,1.85354096,54488.0,54487.0,0.062201]
[1725825510528,1.83914952,54488.0,54487.0,0.062201]
[1725825510775,1.67445097,54488.0,54487.0,0.062201]
[1725825511217,1.83914952,54488.0,54487.0,0.062201]
[1725825511430,1.67445097,54488.0,54487.0,0.062201]
[1725825511645,1.83914952,54488.0,54487.0,0.062201]
[1725825512546,1.67445097,54488.0,54487.0,0.062201]
[1725825512761,1.83914952,54488.0,54487.0,0.062201]
[1725825512972,1.67445097,54488.0,54487.0,0.062201]
[1725825513433,1.83914952,54488.0,54487.0,0.062201]
[1725825513660,1.67445097,54488.0,54487.0,0.062201]
[1725825515969,1.83914952,54488.0,54487.0,0.062201]
[1725825516183,1.67616116,54488.0,54487.0,0.062201]
[1725825517072,1.84085195,54488.0,54487.0,0.062201]
[1725825517494,1.67616116,54488.0,54487.0,0.062201]
[1725825518564,1.84085195,54488.0,54487.0,0.062201]
[1725825523513,2.02123595,54488.0,54487.0,0.062201]
[1725825523720,2.02110535,54488.0,54487.0,0.062201]
[1725825525212,1.85641456,54488.0,54487.0,0.062201]
[1725825525648,1.76418437,54488.0,54487.0,0.062201]
[1725825525914,1.92892636,54488.0,54487.0,0.062201]
[1725825526132,1.74815117,54488.0,54487.0,0.062201]
[1725825526348,1.74115117,54488.0,54487.0,0.062201]
[1725825526559,1.75715117,54488.0,54487.0,0.062201]
[1725825526762,1.75115117,54488.0,54487.0,0.062201]
[1725825526943,1.74515117,54488.0,54487.0,0.062201]
[1725825527422,1.93163764,54488.0,54487.0,0.138401]
[1725825528124,1.29376763,54488.0,54487.0,0.138401]
[1725825530752,0.70648363,54488.0,54487.0,0.148401]
[1725825531004,0.68285187,54488.0,54487.0,0.1635663]
[1725825531241,0.82014288,54488.0,54487.0,0.148401]
[1725825531454,0.68285187,54488.0,54487.0,0.148401]
[1725825531660,0.71162656,54488.0,54487.0,0.15994434]
[1725825531870,0.70762656,54488.0,54487.0,0.15994434]
[1725825532544,0.70062656,54488.0,54487.0,0.15994434]
[1725825532979,0.70162656,54488.0,54487.0,0.148401]
[1725825533198,0.70062656,54488.0,54487.0,0.148401]
[1725825533413,0.81140176,54488.0,54487.0,0.148401]
[1725825533871,0.81040176,54488.0,54487.0,0.148401]
[1725825534095,0.42009215,54488.0,54487.0,0.148401]
[1725825534285,0.55338696,54488.0,54487.0,0.148401]
[1725825534528,0.55338696,54488.0,54487.0,0.15994434]
[1725825534977,0.47105269,54488.0,54487.0,0.15994434]
[1725825535199,0.25891921,54488.0,54487.0,0.15994434]
[1725825535418,0.17659569,54488.0,54487.0,0.15994434]
[1725825535620,0.17759569,54488.0,54487.0,0.15994434]
[1725825535827,0.49688856,54488.0,54487.0,0.15994434]
[1725825536045,0.49588856,54488.0,54487.0,0.15994434]
[1725825536255,0.59588856,54488.0,54487.0,0.15994434]
[1725825536462,0.59688856,54488.0,54487.0,0.15994434]
[1725825537074,0.59588856,54488.0,54487.0,0.15994434]
[1725825537516,0.59688856,54488.0,54487.0,0.15994434]
[1725825537720,0.59588856,54488.0,54487.0,0.15994434]
[1725825538150,0.59688856,54488.0,54487.0,0.15994434]
[1725825538970,0.59788856,54488.0,54487.0,0.15994434]
[1725825540457,0.59588856,54488.0,54487.0,0.15994434]
[1725825540671,0.59688856,54488.0,54487.0,0.15994434]
[1725825541235,0.65175216,54488.0,54487.0,0.15994434]
[1725825541338,0.59688856,54488.0,54487.0,0.15994434]
[1725825541522,0.59588856,54488.0,54487.0,0.15994434]
[1725825542415,0.59670356,54488.0,54487.0,0.15994434]
[1725825542631,0.59670356,54488.0,54487.0,0.148401]
[1725825543473,0.59770356,54488.0,54487.0,0.148401]
[1725825543705,0.59670356,54488.0,54487.0,0.148401]
[1725825544127,0.59770356,54488.0,54487.0,0.148401]
[1725825544343,0.59670356,54488.0,54487.0,0.148401]
[1725825544556,0.59770356,54488.0,54487.0,0.148401]
[1725825545180,0.59870356,54488.0,54487.0,0.148401]
[1725825545397,0.70612433,54488.0,54487.0,0.148401]
[1725825546005,0.8158163,54488.0,54487.0,0.148401]
[1725825546239,0.70612433,54488.0,54487.0,0.148401]
[1725825546447,0.70412433,54488.0,54487.0,0.148401]
[1725825546668,0.67747346,54488.0,54487.0,0.148401]
[1725825546886,0.65332251,54488.0,54487.0,0.148401]
[1725825547323,0.65332251,54488.0,54487.0,0.15589792]
[1725825547820,0.91818982,54488.0,54487.0,0.15589792]
[1725825548046,0.91818982,54488.0,54487.0,0.148401]
[1725825548473,0.83592,54488.0,54487.0,0.148401]
[1725825548678,0.91818635,54488.0,54487.0,0.148401]
[1725825548920,0.91818635,54488.0,54487.0,0.1558991]
[1725825549338,0.91818635,54488.0,54487.0,0.148401]
[1725825550245,0.83592,54488.0,54487.0,0.148401]
[1725825550454,0.91818679,54488.0,54487.0,0.148401]
[1725825550675,0.91818679,54488.0,54487.0,0.15589547]
[1725825550905,0.9469623,54488.0,54487.0,0.148401]
[1725825556910,0.62454479,54488.0,54487.0,0.148401]
[1725825557296,0.62454479,54488.0,54487.0,0.15590102]
[1725825559011,0.62454479,54488.0,54487.0,0.148401]
[1725825560247,0.62455728,54488.0,54487.0,0.148401]
[1725825560471,0.65333256,54488.0,54487.0,0.148401]
[1725825561323,0.62455728,54488.0,54487.0,0.148401]
[1725825561517,0.65333255,54488.0,54487.0,0.148401]
[1725825561671,0.65333255,54488.0,54487.0,0.15589763]
[1725825561889,0.65333255,54488.0,54487.0,0.148401]
[1725825562135,0.65333255,54488.0,54487.0,0.33180563]
[1725825562258,0.65333255,54488.0,54487.0,0.324309]
[1725825562454,0.65333255,54488.0,54487.0,0.33180563]
[1725825565379,0.78916144,54488.0,54487.0,0.33180563]
[1725825566798,0.78919539,54488.0,54487.0,0.33180563]
[1725825566965,0.67945573,54488.0,54487.0,0.33180563]
[1725825567996,0.97309773,54488.0,54487.0,0.33180563]
[1725825568266,0.67945573,54488.0,54487.0,0.33180563]
[1725825568826,0.78921277,54488.0,54487.0,0.33180563]
[1725825569040,1.08285477,54488.0,54487.0,0.33180563]
[1725825569194,0.78921277,54488.0,54487.0,0.33180563]
[1725825569854,1.08285477,54488.0,54487.0,0.33180563]
[1725825570456,0.97309773,54488.0,54487.0,0.33180563]
[1725825570864,1.11022986,54488.0,54487.0,0.18340563]
[1725825571070,1.26673973,54488.0,54487.0,0.18340563]
[1725825571320,1.26673973,54488.0,54487.0,0.175909]
[1725825575377,1.2648295,54488.0,54487.0,0.175909]
[1725825579584,1.23605423,54488.0,54487.0,0.175909]
[1725825580215,1.2360877,54488.0,54487.0,0.175909]
[1725825581057,1.26486453,54488.0,54487.0,0.175909]
[1725825583595,1.26386453,54488.0,54487.0,0.175909]
[1725825584627,1.26686453,54488.0,54487.0,0.175909]
[1725825585435,1.26386453,54488.0,54487.0,0.175909]
[1725825586738,1.26586453,54488.0,54487.0,0.175909]
[1725825589672,0.97222253,54488.0,54487.0,0.175909]
[1725825589940,0.97222253,54488.0,54487.0,0.319209]
[1725825590180,0.97197312,54488.0,54487.0,0.319209]
[1725825590407,0.97197312,54488.0,54487.0,0.32635387]
[1725825591927,1.26561512,54488.0,54487.0,0.18305387]
[1725825592056,0.97197312,54488.0,54487.0,0.18305387]
[1725825592299,1.37280623,54488.0,54487.0,0.175909]
[1725825592529,1.26561512,54488.0,54487.0,0.175909]
[1725825595247,1.26449452,54488.0,54487.0,0.175909]
[1725825596507,1.26649452,54488.0,54487.0,0.175909]
[1725825596717,1.26449452,54488.0,54487.0,0.175909]
[1725825597176,1.26249452,54488.0,54487.0,0.175909]
[1725825597604,1.42749492,54488.0,54487.0,0.175909]
[1725825597777,1.43349492,54488.0,54487.0,0.175909]
[1725825598527,1.42749492,54488.0,54487.0,0.175909]
[1725825598740,1.43049492,54488.0,54487.0,0.175909]
[1725825600160,1.42921687,54488.0,54487.0,0.175909]
[1725825600535,1.42621687,54488.0,54487.0,0.175909]
[1725825601256,1.26321647,54488.0,54487.0,0.175909]
[1725825601481,1.26921647,54488.0,54487.0,0.317809]
[1725825601930,1.23443964,54488.0,54487.0,0.317809]
[1725825602138,1.24043964,54488.0,54487.0,0.317809]
[1725825602353,1.23843964,54488.0,54487.0,0.317809]
[1725825602794,1.24043964,54488.0,54487.0,0.317809]
[1725825603252,0.94679764,54488.0,54487.0,0.317809]
[1725825603463,0.9489832,54488.0,54487.0,0.317809]
[1725825603694,0.9429832,54488.0,54487.0,0.317809]
[1725825603900,0.9489832,54488.0,54487.0,0.317809]
[1725825604360,0.9429832,54488.0,54487.0,0.317809]
[1725825604863,0.6543412,54488.0,54487.0,0.317809]
[1725825605090,0.6543412,54488.0,54487.0,0.327809]
[1725825605321,0.3556992,54488.0,54487.0,0.327809]
[1725825605551,0.46745597,54488.0,54487.0,0.327809]
[1725825605772,0.2118782,54488.0,54487.0,0.3609151]
[1725825606006,0.2108782,54488.0,54487.0,0.3609151]
[1725825606462,0.2108782,54488.0,54487.0,0.8013871]
[1725825606463,0.06069202,54488.0,54487.0,0.8013871]
[1725825606672,0.004815,54488.0,54487.0,1.0950351]
[1725825606910,0.000815,54488.0,54487.0,1.0970351]
[1725825607141,0.001815,54488.0,54487.0,1.0970351]
[1725825607372,0.000815,54488.0,54487.0,1.0970351]
[1725825607802,0.000815,54488.0,54487.0,1.0950351]
[1725825608033,0.001815,54488.0,54487.0,1.0950351]
[1725825608460,0.000815,54488.0,54487.0,1.0950351]
[1725825608667,0.001815,54488.0,54487.0,1.0950351]
[1725825609325,0.002815,54488.0,54487.0,1.0950351]
[1725825609727,0.002815,54488.0,54487.0,1.0970351]
[1725825609973,0.000815,54493.0,54492.0,0.734052]
[1725825610202,0.000815,54493.0,54492.0,1.04778739]
[1725825611091,0.001815,54493.0,54492.0,1.04778739]
[1725825611342,0.001815,54493.0,54492.0,1.34140839]
[1725825611556,0.0295879,54496.0,54495.0,0.97614019]
[1725825611782,0.000815,54496.0,54495.0,0.97614019]
[1725825612004,0.000815,54496.0,54495.0,1.40508083]
[1725825613355,0.001815,54496.0,54495.0,1.40508083]
[1725825613565,0.002815,54496.0,54495.0,1.40508083]
[1725825613798,0.002815,54496.0,54495.0,0.72764264]
[1725825614010,0.002815,54496.0,54495.0,0.81587283]
[1725825614854,0.001815,54496.0,54495.0,0.81587283]
[1725825615499,0.002815,54496.0,54495.0,0.81587283]
[1725825615857,0.003815,54496.0,54495.0,0.81587283]
[1725825616057,0.001815,54496.0,54495.0,0.81587283]
[1725825616263,0.001815,54496.0,54495.0,0.68053619]
[1725825616982,0.002815,54496.0,54495.0,0.68053619]
[1725825617532,0.001815,54496.0,54495.0,0.68733681]
[1725825617846,0.002815,54496.0,54495.0,0.68733681]
[1725825618243,0.002815,54496.0,54495.0,0.15870062]
[1725825618462,0.443213,54496.0,54495.0,0.15870062]
[1725825618650,0.443213,54496.0,54495.0,0.07710062]
[1725825618651,0.736812,54496.0,54495.0,0.07710062]
[1725825619092,0.736812,54496.0,54495.0,0.0703]
[1725825619219,0.735812,54496.0,54495.0,0.0703]
[1725825619590,0.736812,54496.0,54495.0,0.0703]
[1725825620025,0.735812,54496.0,54495.0,0.0703]
[1725825620474,0.734812,54496.0,54495.0,0.0703]
[1725825620697,0.735812,54496.0,54495.0,0.0703]
[1725825621126,0.734812,54496.0,54495.0,0.0703]
[1725825621350,0.735812,54496.0,54495.0,0.0703]
[1725825621566,0.72718535,54496.0,54495.0,0.0703]
[1725825621988,0.7569571,54496.0,54495.0,0.0703]
[1725825622195,0.7559571,54496.0,54495.0,0.0703]
[1725825622410,0.8569571,54496.0,54495.0,0.0703]
[1725825622875,0.8559571,54496.0,54495.0,0.0703]
[1725825623319,0.8567721,54496.0,54495.0,0.0703]
[1725825625039,0.8567721,54496.0,54493.0,0.01163]
[1725825625040,0.24836197,54496.0,54493.0,0.01163]
[1725825625266,0.24836197,54496.0,54493.0,0.00163]
[1725825625267,0.82225519,54494.0,54493.0,0.00163]
[1725825625464,1.11586519,54494.0,54493.0,0.00163]
[1725825625682,1.21586519,54494.0,54493.0,0.00163]
[1725825625903,1.127635,54494.0,54493.0,0.00163]
[1725825627232,1.129635,54494.0,54493.0,0.00163]
[1725825628462,1.127635,54494.0,54493.0,0.00163]
[1725825629695,1.129635,54494.0,54493.0,0.00163]
[1725825635833,1.127635,54494.0,54493.0,0.00163]
[1725825636255,1.131635,54494.0,54493.0,0.00163]
[1725825636592,1.127635,54494.0,54493.0,0.00163]
[1725825637064,1.131635,54494.0,54493.0,0.00163]
[1725825638080,1.131635,54494.0,54493.0,0.06443]
[1725825638313,1.127635,54494.0,54493.0,0.06443]
[1725825639456,1.127635,54494.0,54493.0,0.00163]
[1725825639661,1.130635,54494.0,54493.0,0.00163]
[1725825640096,1.127635,54494.0,54493.0,0.00163]
[1725825640296,1.131635,54494.0,54493.0,0.00163]
[1725825640954,1.127635,54494.0,54493.0,0.00163]
[1725825641366,1.129635,54494.0,54493.0,0.00163]
[1725825644214,1.127635,54494.0,54493.0,0.00163]
[1725825644662,1.131635,54494.0,54493.0,0.00163]
[1725825645522,1.18633692,54494.0,54493.0,0.00163]
[1725825647718,1.131635,54494.0,54493.0,0.00163]
[1725825648189,1.21368788,54494.0,54493.0,0.00163]
[1725825649498,1.26369058,54494.0,54493.0,0.00163]
[1725825649713,1.21868788,54494.0,54493.0,0.00163]
[1725825649933,1.22368788,54494.0,54493.0,0.00163]
[1725825650150,1.21468788,54494.0,54493.0,0.00163]
[1725825650596,1.22168788,54494.0,54493.0,0.00163]
[1725825651016,1.139635,54494.0,54493.0,0.00163]
[1725825651233,1.134635,54494.0,54493.0,0.00163]
[1725825651662,1.138635,54494.0,54493.0,0.00163]
[1725825652680,1.131635,54494.0,54493.0,0.00163]
[1725825652892,1.133635,54494.0,54493.0,0.00163]
[1725825653100,1.134635,54494.0,54493.0,0.00163]
[1725825653318,1.24175748,54494.0,54493.0,0.00163]
[1725825653547,1.128635,54494.0,54493.0,0.00163]
[1725825653753,1.133635,54494.0,54493.0,0.00163]
[1725825655268,1.24135428,54494.0,54493.0,0.00163]
[1725825655487,1.133635,54494.0,54493.0,0.00163]
[1725825657477,1.24134367,54494.0,54493.0,0.00163]
[1725825658554,1.35074751,54494.0,54493.0,0.00163]
[1725825659328,1.24134367,54494.0,54493.0,0.00163]
[1725825660345,1.37809848,54494.0,54493.0,0.00163]
[1725825661695,1.24134367,54494.0,54493.0,0.00163]
[1725825661924,1.24134367,54494.0,54493.0,0.06523]
[1725825661925,1.35097948,54494.0,54493.0,0.06523]
[1725825662602,1.24134367,54494.0,54493.0,0.06523]
[1725825662854,1.24134367,54494.0,54493.0,0.00163]
[1725825662855,1.46632867,54494.0,54493.0,0.00163]
[1725825663326,1.32957386,54494.0,54493.0,0.00163]
[1725825666157,1.49574081,54494.0,54493.0,0.00163]
[1725825666402,2.11691098,54494.0,54493.0,0.00163]
[1725825666635,2.06290828,54494.0,54493.0,0.00163]
[1725825667596,2.06190828,54494.0,54493.0,0.00163]
[1725825667827,1.89474133,54494.0,54493.0,0.00163]
[1725825668062,1.66058386,54494.0,54493.0,0.00163]
[1725825668295,1.82810282,54494.0,54493.0,0.00163]
[1725825668530,1.83110282,54494.0,54493.0,0.00163]
[1725825668762,1.84410282,54494.0,54493.0,0.00163]
[1725825668889,1.84203435,54494.0,54493.0,0.00163]
[1725825669312,1.82003435,54494.0,54493.0,0.00163]
[1725825669519,1.83103435,54494.0,54493.0,0.00163]
[1725825669981,1.83103435,54494.0,54493.0,0.00098536]
[1725825670633,1.83803435,54494.0,54493.0,0.00098536]
[1725825670847,1.82003435,54494.0,54493.0,0.00098536]
[1725825671269,1.82803435,54494.0,54493.0,0.00098536]
[1725825671787,1.84003435,54494.0,54493.0,0.00098536]
[1725825672202,2.00501742,54494.0,54493.0,0.00098536]
[1725825672406,2.01201742,54494.0,54493.0,0.00098536]
[1725825672807,2.02301742,54494.0,54493.0,0.00098536]
[1725825673018,2.13349174,54494.0,54493.0,0.00098536]
[1725825674081,2.41610174,54494.0,54493.0,0.00098536]
[1725825674288,2.42010174,54494.0,54493.0,0.00098536]
[1725825674505,2.42710174,54494.0,54493.0,0.00098536]
[1725825674726,2.42910174,54494.0,54493.0,0.00098536]
[1725825675166,2.41810174,54494.0,54493.0,0.00098536]
[1725825675398,2.41110174,54494.0,54493.0,0.00098536]
[1725825675627,2.43910174,54494.0,54493.0,0.00098536]
[1725825676089,2.42510174,54494.0,54493.0,0.00098536]
[1725825676660,2.41110174,54494.0,54493.0,0.00098536]
[1725825676960,2.42510174,54494.0,54493.0,0.00098536]
[1725825677170,2.61012339,54494.0,54493.0,0.00098536]
[1725825677375,2.42510174,54494.0,54493.0,0.00098536]
[1725825677619,2.43910174,54494.0,54493.0,0.00098536]
[1725825677794,2.61012339,54494.0,54493.0,0.00098536]
[1725825678003,2.62412339,54494.0,54493.0,0.00098536]
[1725825678224,2.43910174,54494.0,54493.0,0.00098536]
[1725825678451,2.62412339,54494.0,54493.0,0.00098536]
[1725825678914,2.43910174,54494.0,54493.0,0.00098536]
[1725825679374,2.64412339,54494.0,54493.0,3.6e-07]
[1725825679594,2.53850174,54494.0,54493.0,3.6e-07]
[1725825680501,2.51050174,54494.0,54493.0,3.6e-07]
[1725825680720,2.53850174,54494.0,54493.0,3.6e-07]
[1725825680938,2.53931674,54494.0,54493.0,3.6e-07]
[1725825681833,2.55852615,54494.0,54493.0,3.6e-07]
[1725825682514,2.55852615,54494.0,54487.0,0.175909]
[1725825682515,1.438189,54488.0,54487.0,0.175909]
[1725825682739,1.89957835,54488.0,54487.0,0.175909]
[1725825683635,2.19322035,54488.0,54487.0,0.175909]
[1725825684319,1.32151,54483.0,54482.0,0.00162]
[1725825684545,0.440536,54479.0,54471.0,0.0623]
[1725825684772,0.96051501,54479.0,54471.0,0.0623]
[1725825684988,1.94158801,54479.0,54471.0,0.0623]
[1725825686128,1.93958801,54479.0,54471.0,0.0623]
[1725825686343,1.94158801,54479.0,54471.0,0.0623]
[1725825687242,1.93472838,54479.0,54471.0,0.0623]
[1725825687456,1.92872838,54479.0,54476.0,0.0623]
[1725825687677,1.63503738,54479.0,54477.0,0.0811]
[1725825687946,1.64703738,54479.0,54477.0,0.0811]
[1725825688171,1.94919722,54479.0,54477.0,0.0811]
[1725825688392,1.94519722,54479.0,54477.0,0.0811]
[1725825688610,1.95019722,54479.0,54477.0,0.0811]
[1725825688832,1.95919722,54479.0,54477.0,0.0811]
[1725825689091,1.95919722,54479.0,54476.0,0.0623]
[1725825689277,1.9591686,54479.0,54476.0,0.0623]
[1725825689728,1.82254112,54479.0,54476.0,0.0623]
[1725825690159,2.23083482,54479.0,54476.0,0.0623]
[1725825690381,1.83994112,54479.0,54474.0,0.0623]
[1725825690613,1.85294112,54479.0,54474.0,0.0623]
[1725825691071,1.86694112,54479.0,54474.0,0.0623]
[1725825691293,2.03930343,54479.0,54474.0,0.0623]
[1725825691515,1.90272565,54479.0,54474.0,0.0623]
[1725825691722,1.90272565,54479.0,54472.0,0.0623]
[1725825692171,2.0512804,54479.0,54472.0,0.0623]
[1725825692583,2.0532804,54479.0,54472.0,0.0623]
[1725825692783,1.91672565,54479.0,54472.0,0.0623]
[1725825693224,2.34695155,54479.0,54472.0,0.0623]
[1725825693450,1.174956,54470.0,54466.0,0.0799]
[1725825693668,0.146875,54468.0,54467.0,0.063]
[1725825693894,0.246875,54468.0,54467.0,0.063]
[1725825694176,1.45066189,54468.0,54467.0,0.07033898]
[1725825694346,1.45066189,54468.0,54467.0,0.063]
[1725825694582,1.59350447,54468.0,54467.0,0.063]
[1725825694791,1.66716147,54468.0,54467.0,0.063]
[1725825695223,1.61254908,54468.0,54467.0,0.063]
[1725825695433,1.62354908,54468.0,54467.0,0.063]
[1725825695664,1.78905282,54468.0,54467.0,0.063]
[1725825696797,1.77805282,54468.0,54467.0,0.063]
[1725825697254,1.79505282,54468.0,54467.0,0.063]
[1725825697476,1.78805282,54468.0,54467.0,0.063]
[1725825697703,1.77805282,54468.0,54467.0,0.063]
[1725825697928,1.79805282,54468.0,54467.0,0.063]
[1725825699508,1.85264851,54468.0,54467.0,0.063]
[1725825699740,1.79805282,54468.0,54467.0,0.063]
[1725825700186,1.93831061,54468.0,54467.0,0.063]
[1725825700418,1.93831061,54468.0,54464.0,0.0825]
[1725825700419,1.321947,54465.0,54464.0,0.0825]
[1725825700805,1.63982759,54465.0,54464.0,0.0825]
[1725825701033,1.63982759,54465.0,54464.0,0.1447]
[1725825701494,1.64982759,54465.0,54464.0,0.1447]
[1725825701728,1.49382321,54465.0,54464.0,0.1447]
[1725825702184,1.50082321,54465.0,54464.0,0.1447]
[1725825702421,1.49382321,54465.0,54464.0,0.1447]
[1725825702650,1.50082321,54465.0,54464.0,0.1447]
[1725825702873,1.49082321,54465.0,54464.0,0.1447]
[1725825703328,1.50182321,54465.0,54464.0,0.1447]
[1725825703775,1.65941067,54465.0,54464.0,0.1447]
[1725825703994,1.50182321,54465.0,54464.0,0.1447]
[1725825705126,1.50182321,54465.0,54464.0,0.14633]
[1725825709127,1.49082321,54465.0,54464.0,0.14633]
[1725825709587,1.50082321,54465.0,54464.0,0.14633]
[1725825710044,1.49082321,54465.0,54464.0,0.14633]
[1725825710266,1.50182321,54465.0,54464.0,0.14633]
[1725825710481,1.6705026,54465.0,54464.0,0.14633]
[1725825710704,1.6595026,54465.0,54464.0,0.14633]
[1725825710930,1.6655026,54465.0,54464.0,0.14633]
[1725825711182,1.73015616,54465.0,54464.0,0.14633]
[1725825711625,1.55447677,54465.0,54464.0,0.14633]
[1725825711848,1.58180355,54465.0,54464.0,0.14633]
[1725825713431,0.82406102,54465.0,54464.0,0.14633]
[1725825713685,0.82406102,54465.0,54464.0,0.15633]
[1725825713686,0.116,54465.0,54464.0,0.15633]
[1725825714157,0.016,54465.0,54464.0,0.31061713]
[1725825714609,0.12878689,54468.0,54464.0,0.20743867]
[1725825714863,0.12878689,54468.0,54467.0,0.288577]
[1725825715115,0.12878689,54468.0,54467.0,0.287577]
[1725825715359,0.12878689,54468.0,54467.0,0.2949185]
[1725825715591,0.12878689,54468.0,54467.0,0.2939185]
[1725825716275,0.02878689,54468.0,54467.0,0.2939185]
[1725825716490,0.17566189,54468.0,54467.0,0.1480415]
[1725825717163,0.27666189,54468.0,54467.0,0.1480415]
[1725825717616,0.247875,54468.0,54467.0,0.1480415]
[1725825717836,0.248875,54468.0,54467.0,0.1480415]
[1725825718263,0.247875,54468.0,54467.0,0.1480415]
[1725825718679,0.542625,54468.0,54467.0,0.1480415]
[1725825719160,0.541625,54468.0,54467.0,0.1407]
[1725825719392,0.541625,54468.0,54467.0,0.14802741]
[1725825719625,0.542625,54468.0,54467.0,0.15002741]
[1725825719838,0.24089457,54468.0,54467.0,0.15002741]
[1725825720343,0.38676957,54468.0,54467.0,0.14802741]
[1725825720774,0.41555367,54468.0,54467.0,0.14802741]
[1725825721006,0.41655367,54468.0,54467.0,0.14802741]
[1725825721224,0.41555367,54468.0,54467.0,0.14802741]
[1725825721471,0.41655367,54468.0,54467.0,0.14802741]
[1725825721692,0.41655367,54468.0,54467.0,0.14902741]
[1725825721902,0.51555367,54468.0,54467.0,0.14902741]
[1725825722120,0.51655367,54468.0,54467.0,0.14902741]
[1725825722988,0.51655367,54468.0,54467.0,0.14802741]
[1725825723202,0.51655367,54468.0,54467.0,0.14902741]
[1725825723629,0.51555367,54468.0,54467.0,0.14902741]
[1725825723839,0.51655367,54468.0,54467.0,0.14902741]
[1725825724310,0.51555367,54468.0,54467.0,0.14902741]
[1725825724531,0.51655367,54468.0,54467.0,0.14902741]
[1725825724768,1.10305367,54468.0,54467.0,0.14802741]
[1725825725027,1.15777263,54468.0,54467.0,0.0622]
[1725825725236,1.18613211,54468.0,54467.0,0.0622]
[1725825725445,1.18513211,54468.0,54467.0,0.0622]
[1725825725657,1.10305367,54468.0,54467.0,0.0622]
[1725825726083,1.18520214,54468.0,54467.0,0.0622]
[1725825726292,1.10305367,54468.0,54467.0,0.0622]
[1725825726501,1.20369886,54468.0,54467.0,0.0622]
[1725825726731,1.10405367,54468.0,54467.0,0.0622]
[1725825726948,1.2137111,54468.0,54467.0,0.0622]
[1725825727377,1.31914902,54468.0,54467.0,0.0622]
[1725825727591,1.2037111,54468.0,54467.0,0.0622]
[1725825727800,1.2087111,54468.0,54467.0,0.0622]
[1725825728035,1.2097111,54468.0,54467.0,0.0622]
[1725825728246,1.31814902,54468.0,54467.0,0.0622]
[1725825728455,1.32014902,54468.0,54467.0,0.0622]
[1725825729131,1.028181,54465.0,54464.0,0.00163]
[1725825729348,1.21706862,54465.0,54464.0,0.00163]
[1725825729560,1.31706862,54465.0,54464.0,0.00163]
[1725825730533,1.31906862,54465.0,54464.0,0.00163]
[1725825730756,1.4569625,54465.0,54464.0,0.00163]
[1725825730986,1.4559625,54465.0,54464.0,0.00163]
[1725825731207,1.4549625,54465.0,54464.0,0.00163]